bitfinex-derivatives/quotes_ETHF0:USTF0_20260315
["timestamp","ask_amount","ask_price","bid_price","bid_amount"]
[1773586407942,3.89160048,2094.7,2094.2,3.91753786]
[1773586411244,13.19160048,2094.8,2094.2,3.91753786]
[1773586411646,3.89160048,2094.8,2094.2,3.91753786]
[1773586415643,3.89160048,2095.0,2094.2,3.91753786]
[1773586420555,3.89160048,2095.0,2094.2,4.16106663]
[1773586422855,3.89160048,2095.0,2094.4,3.9120325]
[1773586427154,3.89160048,2095.0,2094.2,3.91753786]
[1773586428252,13.21660048,2095.0,2094.2,3.91753786]
[1773586428456,3.89160048,2094.9,2094.2,3.91753786]
[1773586441870,4.14915908,2094.7,2094.1,7.14721211]
[1773586442064,4.14915908,2094.4,2093.9,4.10533951]
[1773586442772,4.14915908,2094.4,2093.5,30.875]
[1773586443066,4.14915908,2094.4,2093.8,4.10533951]
[1773586451683,4.14915908,2094.0,2093.6,4.10533951]
[1773586451880,4.14915908,2094.4,2093.6,4.10533951]
[1773586452672,4.14915908,2094.4,2093.6,4.10937412]
[1773586455881,9.378,2094.3,2093.6,4.10937412]
[1773586456584,13.52715908,2094.3,2093.6,4.10937412]
[1773586458785,4.14915908,2094.4,2093.8,4.10533951]
[1773586458990,13.53315908,2094.4,2093.8,4.10533951]
[1773586460090,13.53615908,2094.4,2093.8,4.10533951]
[1773586460390,4.14915908,2094.4,2093.8,4.10533951]
[1773586471393,3.7927786,2094.7,2094.0,3.92196157]
[1773586471596,3.7927786,2094.6,2093.8,3.92196157]
[1773586474095,3.81459631,2094.9,2093.8,3.92196157]
[1773586474302,3.7927786,2095.0,2094.3,3.92196157]
[1773586474491,3.7927786,2094.6,2094.1,3.92196157]
[1773586474695,3.7927786,2094.6,2093.9,3.92196157]
[1773586483704,3.7927786,2094.4,2093.8,3.92196157]
[1773586488904,9.418,2094.9,2093.8,3.92196157]
[1773586488905,3.7927786,2094.9,2093.8,3.92196157]
[1773586489111,3.7927786,2094.9,2094.1,3.92196157]
[1773586493111,3.83078198,2094.8,2094.1,3.92196157]
[1773586501417,3.83078198,2094.6,2093.7,3.79402092]
[1773586502118,9.427,2094.5,2093.7,3.79402092]
[1773586502307,3.83078198,2094.4,2093.7,3.79402092]
[1773586503519,3.83078198,2094.4,2093.6,0.00403461]
[1773586503520,3.83078198,2094.4,2093.6,3.79805553]
[1773586506825,3.83078198,2094.2,2093.6,3.79805553]
[1773586507029,3.83078198,2094.2,2093.6,0.00403461]
[1773586507823,3.83078198,2094.2,2093.6,3.79805553]
[1773586509318,3.83078198,2094.3,2093.6,3.79805553]
[1773586509722,13.26278198,2094.3,2093.6,3.79805553]
[1773586510223,3.83078198,2094.3,2093.6,3.79805553]
[1773586510426,0.23866,2094.7,2093.6,3.79805553]
[1773586510625,3.83078198,2094.5,2093.6,3.79805553]
[1773586512428,13.23778198,2094.4,2093.6,3.79805553]
[1773586512623,13.19278198,2094.4,2093.6,3.79805553]
[1773586512926,13.19478198,2094.4,2093.6,3.79805553]
[1773586513629,3.83078198,2094.3,2093.6,3.79805553]
[1773586514128,13.20278198,2094.4,2093.6,3.79805553]
[1773586514329,3.83078198,2094.4,2093.6,3.79805553]
[1773586514530,13.20478198,2094.4,2093.6,3.79805553]
[1773586515528,3.83078198,2094.3,2093.6,3.79805553]
[1773586515730,3.83078198,2095.0,2094.0,3.79402092]
[1773586516229,3.83078198,2094.8,2094.0,3.79402092]
[1773586522333,3.83078198,2094.8,2094.0,4.03680943]
[1773586527835,3.7768612,2095.0,2094.0,5.8611331]
[1773586528043,3.7768612,2095.0,2094.1,3.80248765]
[1773586531842,0.00403233,2095.1,2094.1,3.80248765]
[1773586531843,3.78089353,2095.1,2094.1,3.80248765]
[1773586537542,0.00403233,2095.1,2094.4,3.80248765]
[1773586537844,3.78089353,2095.1,2094.4,3.80248765]
[1773586538747,0.00403233,2095.1,2094.4,3.80248765]
[1773586539047,3.78089353,2095.1,2094.4,3.80248765]
[1773586545154,3.78089353,2095.1,2094.4,11.2926789]
[1773586545453,3.78089353,2095.1,2094.5,3.80248765]
[1773586546756,3.78089353,2095.1,2094.6,3.80248765]
[1773586550749,3.7768612,2095.3,2094.8,3.80248765]
[1773586551546,9.311,2095.7,2094.7,42.62251641]
[1773586551547,3.75598948,2095.5,2095.2,3.81730913]
[1773586551748,1.724362,2095.5,2095.2,3.82244469]
[1773586551950,1.724362,2095.5,2095.2,0.00513556]
[1773586553254,1.724362,2095.5,2095.2,3.58264547]
[1773586553455,0.00417761,2095.5,2095.2,3.58264547]
[1773586554254,3.61314701,2095.5,2095.2,3.58264547]
[1773586554453,3.61314701,2095.5,2095.2,0.00513556]
[1773586554654,3.61314701,2095.5,2095.0,3.57750991]
[1773586555651,3.61314701,2095.5,2095.1,5.40002632]
[1773586556452,3.61314701,2095.5,2095.2,3.57750991]
[1773586556962,0.00417761,2095.5,2095.2,3.57750991]
[1773586562259,3.61314701,2095.5,2095.1,3.57750991]
[1773586563665,0.00417761,2095.5,2095.2,3.57750991]
[1773586564163,3.6089694,2095.9,2095.2,3.57750991]
[1773586565064,3.61314874,2095.9,2095.2,3.57750991]
[1773586569974,0.00417934,2095.9,2095.2,3.57750991]
[1773586570173,0.00417934,2095.9,2095.4,3.57750991]
[1773586570670,3.61314874,2095.9,2095.4,3.57750991]
[1773586572570,7.59416491,2096.7,2095.6,3.57750991]
[1773586572867,8.351,2097.3,2095.7,2.69971123]
[1773586572868,3.6089694,2096.6,2095.7,2.69971123]
[1773586573073,3.6089694,2096.6,2095.8,43.49971123]
[1773586573475,3.6089694,2096.6,2095.9,2.69971123]
[1773586573672,3.61248571,2096.6,2095.9,2.69971123]
[1773586573878,3.61248571,2096.6,2095.8,44.25779479]
[1773586575178,3.61248571,2096.6,2095.9,3.17068904]
[1773586577380,3.61248571,2096.6,2096.0,3.2348477]
[1773586582391,3.61248571,2096.6,2096.2,3.17810633]
[1773586582690,4.05581184,2096.8,2096.4,3.18063484]
[1773586583692,4.05991629,2096.8,2096.4,3.18063484]
[1773586584592,1.82251641,2096.9,2096.1,5.9831526]
[1773586584792,4.05581184,2096.6,2096.0,3.10495806]
[1773586585585,4.06103194,2096.6,2096.0,3.10495806]
[1773586586090,4.06103194,2096.6,2096.1,2.95714081]
[1773586588592,0.23836,2097.4,2096.3,3.06048952]
[1773586588593,4.05581184,2097.0,2096.3,3.06048952]
[1773586588797,4.05581184,2097.0,2096.1,3.05762091]
[1773586589696,4.06006056,2097.0,2096.1,3.05762091]
[1773586594603,4.05581184,2096.8,2096.1,3.05762091]
[1773586600408,4.05581184,2096.8,2096.2,3.1297927]
[1773586601109,4.05581184,2096.8,2096.3,3.12845992]
[1773586604412,4.06006056,2097.0,2096.4,3.1000394]
[1773586605509,4.06006056,2097.0,2096.3,9.07654227]
[1773586605710,4.06006056,2097.0,2096.4,3.09338967]
[1773586608814,4.06006056,2097.0,2096.3,9.2061415]
[1773586609312,4.06006056,2097.0,2096.4,5.9831526]
[1773586610212,4.05581184,2096.9,2096.2,7.22692233]
[1773586610515,4.05581184,2096.9,2095.9,4.20491169]
[1773586613711,4.05581184,2096.9,2095.9,3.96596904]
[1773586613907,4.05581184,2096.9,2095.8,45.05312082]
[1773586614908,4.05581184,2096.9,2095.9,4.25312082]
[1773586635937,4.46421914,2096.7,2095.9,4.25312082]
[1773586643940,4.2525811,2096.5,2095.9,4.25312082]
[1773586649644,3.99571189,2096.9,2095.9,4.25312082]
[1773586649645,4.2525811,2096.8,2096.0,4.43177334]
[1773586649845,5.56591125,2096.7,2096.0,4.43177334]
[1773586650044,9.81849235,2096.7,2096.0,4.43177334]
[1773586650246,4.2525811,2096.7,2096.0,4.43177334]
[1773586658259,4.2525811,2096.9,2096.1,4.43177334]
[1773586658557,9.81678016,2096.8,2096.1,4.43177334]
[1773586658758,4.2525811,2096.8,2096.1,4.43177334]
[1773586666467,4.2525811,2096.8,2096.2,4.43177334]
[1773586666766,4.2525811,2096.9,2096.3,4.43177334]
[1773586669271,4.2525811,2096.9,2096.5,4.43177334]
[1773586669471,4.2525811,2096.9,2096.5,4.43576097]
[1773586669671,4.25682982,2097.0,2096.5,4.43576097]
[1773586679980,4.25682982,2097.0,2096.7,4.46184791]
[1773586686083,0.00424872,2097.0,2096.7,4.46184791]
[1773586686282,4.09404064,2097.0,2096.7,4.46184791]
[1773586686985,4.09404064,2097.0,2096.6,6.28131369]
[1773586687579,4.09404064,2097.0,2096.1,12.18584433]
[1773586687783,4.09404064,2097.0,2096.2,4.46184791]
[1773586688380,4.09404064,2097.0,2096.2,6.28131369]
[1773586688582,4.09404064,2097.0,2096.2,6.28490307]
[1773586689476,4.09404064,2097.0,2096.3,4.46184791]
[1773586691189,4.09404064,2097.0,2096.2,1.82305516]
[1773586691585,4.09404064,2097.0,2096.3,4.46184791]
[1773586719610,4.09404064,2097.0,2096.5,4.35110906]
[1773586722512,0.00424872,2097.0,2096.5,4.35110906]
[1773586723113,4.2468949,2097.0,2096.5,4.35110906]
[1773586727320,0.00424872,2097.0,2096.5,4.35110906]
[1773586729018,4.2468949,2097.0,2096.5,4.35110906]
[1773586730324,4.2468949,2097.0,2096.3,11.83538624]
[1773586730724,4.2468949,2097.0,2096.4,4.35110906]
[1773586749135,0.00424872,2097.0,2096.4,4.35110906]
[1773586749535,3.96709429,2097.0,2096.4,4.35110906]
[1773586756237,0.00424872,2097.0,2096.4,4.35110906]
[1773586756741,0.00424872,2097.0,2096.5,3.99340346]
[1773586757539,3.96284557,2097.4,2096.6,3.99340346]
[1773586757742,0.8361151,2097.5,2096.6,3.99340346]
[1773586757743,9.53275741,2097.3,2096.6,3.99340346]
[1773586757930,3.96284557,2097.3,2096.6,3.99340346]
[1773586758440,3.96648682,2097.3,2096.6,3.99340346]
[1773586775756,3.96648682,2097.3,2096.4,7.72256666]
[1773586775956,3.96648682,2097.3,2096.4,11.91664567]
[1773586776155,3.96648682,2097.3,2096.5,4.19407901]
[1773586788756,3.96648682,2097.3,2096.7,4.19407901]
[1773586793167,4.09177408,2097.1,2096.7,4.19407901]
[1773586796264,0.00364125,2097.3,2096.4,7.72256666]
[1773586796265,0.00364125,2097.3,2096.9,4.09045136]
[1773586796863,4.09541533,2097.3,2096.9,4.09045136]
[1773586800269,0.00364125,2097.3,2096.9,4.09045136]
[1773586800768,4.09541533,2097.3,2096.8,4.09045136]
[1773586800971,4.09541533,2097.3,2096.9,4.09045136]
[1773586801670,0.00364125,2097.3,2096.9,4.09045136]
[1773586802472,4.92788918,2097.5,2097.1,4.09045136]
[1773586802672,0.8361151,2097.5,2097.1,4.09045136]
[1773586803574,4.93352226,2097.5,2096.9,4.09045136]
[1773586807571,4.09177408,2097.2,2096.6,4.09045136]
[1773586807775,4.09177408,2096.8,2096.2,4.09404074]
[1773586808176,4.09177408,2096.8,2096.2,0.00358938]
[1773586809273,4.09177408,2096.8,2096.2,4.09404074]
[1773586816082,4.09177408,2096.6,2096.2,4.09404074]
[1773586816285,4.09177408,2096.6,2096.2,0.00358938]
[1773586818285,9.461,2097.2,2095.5,4.09045136]
[1773586818286,1.58852924,2096.2,2095.5,4.09045136]
[1773586818587,1.58852924,2096.0,2095.5,4.09045136]
[1773586818786,4.0003405,2096.5,2095.3,0.23848614]
[1773586818787,1.57505951,2096.3,2095.7,4.09045136]
[1773586819083,1.57988627,2096.3,2095.7,4.09491882]
[1773586828098,3.39859953,2096.3,2095.7,4.09491882]
[1773586828298,1.71498431,2096.2,2095.7,4.09491882]
[1773586828492,1.71498431,2096.2,2095.7,3.41564357]
[1773586830699,2.44143011,2096.1,2095.7,3.41564357]
[1773586831701,1.81871326,2096.2,2095.7,3.41564357]
[1773586831904,4.25660287,2096.2,2095.7,3.41564357]
[1773586832703,2.43788961,2096.1,2095.7,3.41564357]
[1773586833202,4.22958976,2096.2,2095.7,3.41564357]
[1773586834202,0.00482676,2096.3,2095.7,3.41564357]
[1773586834505,2.41505694,2097.0,2096.0,4.05158434]
[1773586835002,1.81871326,2096.9,2096.1,4.05158434]
[1773586835202,4.25917782,2096.9,2096.1,4.05158434]
[1773586835402,4.26497893,2096.9,2096.1,4.05158434]
[1773586835596,2.44626567,2096.9,2096.1,4.05158434]
[1773586837103,4.26497893,2096.9,2096.1,4.05158434]
[1773586837299,2.57493439,2096.8,2096.1,4.05158434]
[1773586838307,2.57412348,2096.6,2096.1,4.05158434]
[1773586840404,2.56796484,2096.8,2096.1,4.05158434]
[1773586843210,1.81871326,2096.7,2096.1,4.05158434]
[1773586843509,2.59342972,2096.6,2096.1,4.05158434]
[1773586847114,2.56901213,2096.4,2095.9,4.05158434]
[1773586847314,4.38772539,2096.3,2095.9,4.05158434]
[1773586849914,2.53849977,2096.2,2095.8,4.05158434]
[1773586854916,2.51671599,2096.6,2095.8,4.05158434]
[1773586855116,2.51671599,2096.4,2095.8,4.05158434]
[1773586856018,2.51671599,2096.4,2095.8,4.17500016]
[1773586857120,2.51671599,2096.4,2095.8,4.17904511]
[1773586858923,2.51671599,2096.4,2095.8,0.00404495]
[1773586859123,5.77796135,2096.3,2095.8,4.17904511]
[1773586859420,2.55051258,2096.4,2095.8,4.17904511]
[1773586862326,2.55051258,2096.4,2095.8,0.00404495]
[1773586862533,2.63914488,2096.2,2095.6,4.17500016]
[1773586863529,2.63914488,2096.2,2095.6,4.17923254]
[1773586875645,6.59323221,2096.2,2095.4,4.17500016]
[1773586875849,8.37270637,2096.1,2095.4,4.17500016]
[1773586876041,5.78383575,2096.0,2095.4,4.17500016]
[1773586876741,5.78383575,2096.0,2095.4,4.18051666]
[1773586877636,2.56536111,2095.9,2095.4,4.18051666]
[1773586878147,2.54874122,2096.1,2095.4,4.18051666]
[1773586878345,8.33655099,2096.0,2095.4,4.18051666]
[1773586878549,2.54874122,2096.0,2095.4,4.18051666]
[1773586882646,2.481629,2096.2,2095.4,4.18051666]
[1773586882846,5.78653112,2096.1,2095.4,4.18051666]
[1773586883049,8.25819144,2096.1,2095.4,4.18051666]
[1773586883244,5.78653112,2096.0,2095.4,4.18051666]
[1773586888152,2.47166032,2096.1,2095.4,4.18051666]
[1773586890253,8.22444214,2096.0,2095.4,4.18051666]
[1773586890453,2.43425053,2096.0,2095.4,4.18051666]
[1773586891555,2.42485144,2096.1,2095.4,4.18051666]
[1773586891755,5.79070462,2096.0,2095.4,4.18051666]
[1773586897062,8.19646467,2096.0,2095.4,4.18051666]
[1773586897362,2.40576005,2096.0,2095.4,4.18051666]
[1773586904264,8.41252567,2095.9,2095.4,4.18051666]
[1773586904467,2.6159585,2095.9,2095.4,4.18051666]
[1773586907067,2.6159585,2095.9,2095.2,44.76853778]
[1773586907261,3.21981657,2095.7,2095.2,3.96853778]
[1773586908266,3.21981657,2095.7,2095.2,3.97410111]
[1773586912665,1.82199908,2095.6,2095.2,3.97410111]
[1773586912867,3.23195821,2095.3,2095.0,4.00865683]
[1773586913569,1.82199908,2095.4,2095.0,4.00865683]
[1773586913770,0.00453308,2095.4,2095.0,4.012841]
[1773586914377,3.22860505,2095.4,2095.0,4.012841]
[1773586917374,5.02884303,2095.4,2095.0,4.012841]
[1773586918871,0.00453308,2095.4,2095.0,4.012841]
[1773586919077,9.596,2095.8,2095.0,4.012841]
[1773586919676,12.95424701,2096.0,2095.2,4.00865683]
[1773586919878,5.78295725,2095.9,2095.2,4.00865683]
[1773586920282,5.78295725,2095.9,2095.3,4.00865683]
[1773586920782,14.78023009,2096.0,2095.3,4.00865683]
[1773586921077,3.6728438,2095.9,2095.3,4.00865683]
[1773586923678,0.003984,2096.0,2095.3,5.83065591]
[1773586923985,9.618984,2096.0,2095.4,4.00865683]
[1773586924181,15.10086267,2096.0,2095.4,4.00865683]
[1773586924379,3.65987959,2095.9,2095.4,4.00865683]
[1773586926685,3.65498445,2095.7,2095.4,4.00865683]
[1773586931589,5.47791912,2095.8,2095.4,4.00865683]
[1773586931893,3.65592004,2095.8,2095.4,4.00865683]
[1773586932084,9.647,2095.9,2095.4,4.00865683]
[1773586932387,13.28223809,2095.9,2095.4,4.00865683]
[1773586934388,3.62613308,2095.8,2095.4,4.00865683]
[1773586935096,13.2638642,2095.9,2095.4,4.00865683]
[1773586935594,3.6168642,2095.8,2095.4,4.00865683]
[1773586935791,13.25465178,2095.9,2095.4,4.00865683]
[1773586936094,13.27065178,2095.9,2095.4,4.00865683]
[1773586941795,1.82598308,2096.0,2095.4,4.00865683]
[1773586941796,3.62955857,2096.0,2095.4,4.00865683]
[1773586942100,9.687,2095.9,2095.4,4.00865683]
[1773586942499,13.31257457,2095.9,2095.4,4.00865683]
[1773586945293,3.62557457,2095.9,2095.4,4.00865683]
[1773586945498,13.32657457,2095.9,2095.4,4.00865683]
[1773586946100,3.62557457,2095.9,2095.4,4.00865683]
[1773586946304,13.32957457,2095.9,2095.4,4.00865683]
[1773586947604,13.29702244,2096.3,2095.5,3.83213524]
[1773586948005,13.29702244,2096.3,2095.6,3.83213524]
[1773586948205,3.58911314,2096.2,2095.6,3.83213524]
[1773586948608,3.59273999,2096.2,2095.6,3.83213524]
[1773586949507,13.30873999,2096.2,2095.6,3.83213524]
[1773586949702,9.72162685,2096.2,2095.6,3.83213524]
[1773586949908,3.61408207,2096.2,2095.6,3.83213524]
[1773586951206,0.00362685,2096.2,2095.6,3.83213524]
[1773586955312,3.62091285,2096.2,2095.6,3.83213524]
[1773586961220,0.00362685,2096.2,2095.6,3.83213524]
[1773586964717,3.62267254,2096.2,2095.7,3.83213524]
[1773586964918,1.82199908,2096.3,2095.4,0.24253046]
[1773586964919,5.44467162,2096.3,2095.6,3.83213524]
[1773586965622,3.62267254,2096.2,2095.6,3.83213524]
[1773586966523,3.62469818,2096.0,2095.6,3.83213524]
[1773586977823,3.56696529,2096.2,2095.6,3.83213524]
[1773586978228,3.5682377,2096.3,2095.6,3.83213524]
[1773586979230,3.5595797,2096.1,2095.6,3.83213524]
[1773586980630,3.56120486,2096.2,2095.6,3.83213524]
[1773586983330,0.00426245,2096.3,2095.6,3.83213524]
[1773586983634,9.35234559,2096.3,2095.6,3.83213524]
[1773586983834,3.5520998,2096.3,2095.6,3.83213524]
[1773586985032,3.54196709,2096.1,2095.6,3.83213524]
[1773586986232,3.53062924,2096.3,2095.6,3.83213524]
[1773586986429,3.52636679,2096.1,2095.6,3.83213524]
[1773586990734,3.51694181,2096.2,2095.6,3.83213524]
[1773586995040,0.00426245,2096.3,2095.6,3.83213524]
[1773586995240,9.77626245,2096.3,2095.6,3.83213524]
[1773586995540,5.80003989,2096.2,2095.6,3.83213524]
[1773586995838,3.55604231,2096.3,2095.6,3.83213524]
[1773586996839,9.33945566,2096.2,2095.6,3.83213524]
[1773586997140,3.53979268,2096.2,2095.6,3.83213524]
[1773586999538,3.53979268,2096.2,2095.3,40.8]
[1773586999738,3.53979268,2096.2,2095.4,3.99786093]
[1773587004548,3.23335989,2096.1,2095.4,3.99786093]
[1773587007047,3.23335989,2096.1,2095.3,40.8]
[1773587007251,3.19096689,2095.9,2095.2,3.78483348]
[1773587007545,3.19096689,2095.7,2095.2,3.78483348]
[1773587009652,8.95348199,2095.6,2095.0,0.00418417]
[1773587009950,3.1549716,2095.5,2095.0,3.78901765]
[1773587011954,3.1549716,2095.5,2094.7,3.78483348]
[1773587013051,3.1549716,2095.5,2094.7,3.41295125]
[1773587013257,3.69813874,2095.2,2094.4,44.58483348]
[1773587013556,3.69813874,2095.1,2094.5,3.78483348]
[1773587014259,3.69813874,2095.1,2094.5,3.78947547]
[1773587019563,3.69813874,2095.1,2094.5,0.00464199]
[1773587021764,3.69813874,2095.1,2094.5,3.78947547]
[1773587024968,3.69813874,2095.1,2094.5,0.00464199]
[1773587028265,3.69813874,2095.1,2094.1,3.78483348]
[1773587028474,3.69813874,2094.9,2094.1,3.78483348]
[1773587028868,3.69813874,2094.7,2094.1,3.78483348]
[1773587029162,3.70253696,2094.7,2094.1,3.79032239]
[1773587029772,0.00439822,2094.7,2094.1,3.79032239]
[1773587032779,0.00439822,2094.7,2094.1,5.61347336]
[1773587033078,3.95563487,2095.0,2094.2,3.81335608]
[1773587033278,3.95563487,2095.4,2094.6,3.81335608]
[1773587033869,3.95990588,2095.4,2094.6,3.81335608]
[1773587038370,3.95563487,2095.2,2094.3,2.06185097]
[1773587038575,3.95563487,2095.2,2094.4,3.81335608]
[1773587041181,3.95563487,2095.3,2094.6,3.81335608]
[1773587041783,3.95990588,2095.4,2094.6,3.81335608]
[1773587041983,5.81243085,2095.3,2094.6,3.81335608]
[1773587042783,9.76806572,2095.3,2094.6,3.81335608]
[1773587042981,3.95563487,2095.3,2094.6,3.81335608]
[1773587043682,3.95563487,2095.2,2094.6,3.81335608]
[1773587044383,3.95990588,2095.4,2094.8,3.81335608]
[1773587044583,3.95563487,2095.3,2094.8,3.81335608]
[1773587050086,3.95563487,2095.3,2094.6,3.81335608]
[1773587053898,3.95563487,2095.2,2094.6,3.81335608]
[1773587054197,3.95563487,2095.2,2094.4,3.81335608]
[1773587054398,3.95563487,2095.0,2094.4,3.81335608]
[1773587068205,3.95563487,2095.0,2094.2,3.71537703]
[1773587075705,3.72147087,2094.8,2094.2,3.71537703]
[1773587096723,3.72147087,2094.8,2094.1,0.24208261]
[1773587097028,3.72147087,2094.8,2094.1,3.95814779]
[1773587102825,3.72147087,2094.8,2094.1,3.72155409]
[1773587105527,3.72147087,2094.8,2094.1,0.00548891]
[1773587105726,3.42533667,2094.6,2093.5,3.71606518]
[1773587105931,3.42533667,2094.3,2093.5,3.71606518]
[1773587106226,9.25472077,2094.2,2093.6,40.8]
[1773587106434,3.42533667,2094.1,2093.6,40.8]
[1773587106830,3.42533667,2094.1,2093.6,0.0046784]
[1773587107528,3.42533667,2094.1,2093.6,3.72074358]
[1773587112031,3.42533667,2094.3,2093.6,3.72074358]
[1773587112435,3.42533667,2094.5,2093.6,3.72074358]
[1773587112934,3.42533667,2094.5,2093.8,3.71606518]
[1773587121037,3.42533667,2094.5,2094.0,3.70156261]
[1773587124946,3.42955314,2094.9,2094.0,3.70156261]
[1773587132351,3.42955314,2094.7,2093.9,44.34933983]
[1773587133848,3.42955314,2094.7,2094.0,3.30541753]
[1773587134354,3.42955314,2094.7,2093.9,41.0439223]
[1773587134355,3.42955314,2094.7,2093.9,3.30541753]
[1773587134853,3.42955314,2094.7,2094.1,3.30541753]
[1773587136054,0.23861,2095.2,2094.1,3.30541753]
[1773587136055,3.42955314,2095.0,2094.1,3.30541753]
[1773587136249,3.42955314,2095.0,2094.2,3.30541753]
[1773587143663,3.42955314,2095.0,2094.2,3.54708439]
[1773587148168,3.42955314,2095.0,2094.2,3.30541753]
[1773587148471,3.42955314,2095.0,2094.0,40.8]
[1773587148770,3.42955314,2094.8,2094.1,3.30541753]
[1773587156780,3.42955314,2094.8,2094.2,3.40677156]
[1773587161186,3.3860511,2094.6,2094.0,44.20677156]
[1773587161983,3.3860511,2094.4,2094.0,40.8]
[1773587162577,3.3860511,2094.4,2093.9,3.40677156]
[1773587163175,3.3860511,2094.4,2094.0,3.40677156]
[1773587165282,3.3860511,2094.4,2093.9,40.8]
[1773587165484,3.3860511,2094.4,2093.9,44.20677156]
[1773587165984,3.3860511,2094.4,2093.7,3.40677156]
[1773587166484,3.3860511,2094.4,2093.7,3.64985709]
[1773587167486,3.3860511,2094.4,2093.7,3.40677156]
[1773587175596,3.3860511,2094.2,2093.6,42.10442646]
[1773587175793,3.3860511,2094.2,2093.6,1.30442646]
[1773587175991,3.3860511,2094.2,2093.6,4.5899515]
[1773587176897,3.3860511,2094.2,2093.7,3.28552504]
[1773587180100,3.3860511,2094.2,2093.6,4.53560738]
[1773587184501,3.3860511,2094.2,2093.7,2.981493]
[1773587185107,3.24478091,2094.4,2093.8,2.981493]
[1773587191008,3.24478091,2094.2,2093.8,2.981493]
[1773587211219,3.24478091,2094.2,2093.7,2.5847937]
[1773587216622,2.92673734,2094.6,2094.2,2.59107706]
[1773587217220,2.92673734,2094.6,2093.7,2.56939741]
[1773587219427,2.92673734,2094.9,2093.7,2.56939741]
[1773587219726,2.92673734,2094.7,2093.7,2.56939741]
[1773587220226,2.92673734,2094.7,2093.7,2.8130321]
[1773587223824,2.92673734,2094.5,2093.7,0.24363469]
[1773587224029,2.92673734,2094.5,2093.6,1.30442646]
[1773587224431,2.92673734,2094.3,2093.6,1.30442646]
[1773587224732,2.92673734,2094.3,2093.6,0.0046784]
[1773587228030,2.92673734,2094.1,2093.6,0.0046784]
[1773587228528,2.92673734,2094.1,2093.4,40.8]
[1773587229127,2.92673734,2094.1,2093.2,2.50914845]
[1773587229530,2.92673734,2094.1,2093.2,2.51493548]
[1773587229833,2.92673734,2094.1,2093.3,40.8]
[1773587230528,2.92673734,2093.9,2093.3,40.8]
[1773587230727,2.93177898,2093.9,2093.3,40.8]
[1773587234132,2.93177898,2093.9,2093.2,2.51493548]
[1773587234634,2.93177898,2093.9,2093.2,43.31493548]
[1773587235333,2.93177898,2093.9,2093.2,40.80578703]
[1773587235536,2.93177898,2093.9,2093.2,0.00578703]
[1773587235836,2.93177898,2093.9,2093.2,0.00138881]
[1773587236239,2.92673734,2093.7,2092.9,2.55226705]
[1773587236633,2.92673734,2093.7,2092.9,43.35226705]
[1773587237138,2.92673734,2093.7,2092.9,43.35614569]
[1773587237835,2.92673734,2093.7,2093.0,2.53689973]
[1773587239143,2.92673734,2093.8,2093.0,2.53689973]
[1773587243535,2.91240241,2094.1,2093.0,2.53689973]
[1773587243742,2.91240241,2094.1,2093.1,2.45166024]
[1773587244643,2.91715792,2094.1,2093.1,2.45166024]
[1773587256465,2.91240241,2093.9,2093.1,2.45166024]
[1773587260866,2.91240241,2093.9,2093.0,2.55026136]
[1773587261565,2.91240241,2093.7,2092.9,40.80387864]
[1773587262673,2.91240241,2093.5,2092.9,40.80387864]
[1773587265974,2.91240241,2093.5,2092.9,0.00387864]
[1773587266374,2.91240241,2093.5,2092.6,2.35204659]
[1773587266575,2.91240241,2093.3,2092.3,2.35204659]
[1773587266970,2.91240241,2093.1,2092.4,40.8]
[1773587267370,2.91240241,2093.1,2092.1,2.33860214]
[1773587267577,1.82337926,2093.3,2091.6,2.34396548]
[1773587267578,2.91240241,2092.9,2091.6,2.34396548]
[1773587267970,2.91240241,2092.9,2091.8,2.33504914]
[1773587268771,2.91240241,2092.9,2091.8,2.34049114]
[1773587273472,2.91240241,2092.9,2091.9,42.91677565]
[1773587275382,2.91240241,2092.9,2092.0,2.06833268]
[1773587278783,2.91240241,2092.9,2092.3,2.02340448]
[1773587280376,1.82650732,2093.3,2092.3,2.02340448]
[1773587280581,2.5759757,2093.2,2092.5,1.90656266]
[1773587282084,2.5759757,2093.2,2092.7,1.88939562]
[1773587288182,2.5759757,2093.6,2093.0,3.67534401]
[1773587288387,2.5759757,2093.6,2093.0,1.84883669]
[1773587292395,2.5759757,2093.6,2092.9,1.82211671]
[1773587293294,2.5759757,2093.5,2092.7,1.81351083]
[1773587295991,2.5759757,2093.5,2092.9,1.82602779]
[1773587296796,2.5759757,2093.5,2093.1,1.82602779]
[1773587298099,2.5759757,2093.5,2092.9,1.81213733]
[1773587298303,2.5759757,2093.5,2093.1,1.81213733]
[1773587298496,2.5759757,2093.5,2093.0,1.81213733]
[1773587298696,2.5759757,2093.5,2092.8,1.81213733]
[1773587316516,2.43695025,2093.8,2093.2,1.75820875]
[1773587317420,8.26743238,2093.7,2093.2,1.75820875]
[1773587317722,2.43695025,2093.7,2093.2,1.75820875]
[1773587324525,2.43695025,2093.9,2093.2,1.75820875]
[1773587324726,2.43695025,2093.9,2093.3,1.67993198]
[1773587324927,2.43695025,2093.9,2093.3,1.68574923]
[1773587325432,2.43695025,2093.9,2093.5,1.68928346]
[1773587330929,2.44170576,2094.1,2093.6,2.50728221]
[1773587332930,2.44170576,2094.1,2093.4,43.17337296]
[1773587336040,2.44170576,2094.1,2093.4,2.37337296]
[1773587340133,2.45489322,2093.9,2093.3,40.80581725]
[1773587340336,2.45489322,2093.6,2093.1,2.37337296]
[1773587340835,2.45489322,2093.6,2093.2,43.17337296]
[1773587341239,2.45489322,2093.6,2093.2,43.17922317]
[1773587343335,2.45489322,2093.6,2093.2,2.37922317]
[1773587346643,2.45489322,2094.0,2093.2,2.37922317]
[1773587351343,2.45489322,2093.8,2093.2,0.00585021]
[1773587353347,2.45489322,2093.8,2093.2,2.37922317]
[1773587354047,2.45489322,2093.8,2093.2,0.00585021]
[1773587357643,2.45489322,2093.8,2093.2,2.37922317]
[1773587360252,2.45489322,2094.0,2093.2,2.37922317]
[1773587361151,0.00475551,2094.1,2093.2,2.37922317]
[1773587364251,0.00475551,2094.1,2093.3,0.23882]
[1773587364456,0.00475551,2094.1,2093.4,2.34420977]
[1773587364655,0.00475551,2094.1,2093.6,2.34420977]
[1773587366951,2.27450141,2094.1,2093.6,2.34420977]
[1773587367150,0.00475551,2094.1,2093.6,2.34420977]
[1773587368256,2.27450141,2094.1,2093.6,2.34420977]
[1773587369557,2.27450141,2094.1,2093.6,2.58422671]
[1773587369851,2.27450141,2094.1,2093.5,31.032]
[1773587370653,2.27450141,2094.1,2093.4,2.34420977]
[1773587371053,2.27450141,2094.1,2093.3,2.34420977]
[1773587373162,2.27450141,2094.1,2093.2,0.00585021]
[1773587373462,2.2697459,2093.9,2093.2,0.00585021]
[1773587373961,2.2697459,2093.9,2092.9,2.34420977]
[1773587374163,2.2697459,2093.7,2092.9,2.34420977]
[1773587374560,2.2697459,2093.7,2093.0,40.8]
[1773587374964,2.2697459,2093.7,2093.0,40.80550138]
[1773587375160,2.2697459,2093.7,2093.0,0.00550138]
[1773587378059,2.2697459,2093.7,2093.0,2.34971115]
[1773587400892,2.2697459,2093.7,2093.1,2.38698686]